bitfinex/quotes_SOLUSD_20230702
["timestamp","ask_amount","ask_price","bid_price","bid_amount"]
[1688258341751,22.514,18.788,18.77,42.529]
[1688258342846,22.514,18.788,18.773,22.532]
[1688258346759,22.514,18.788,18.774,55.0]
[1688258346938,22.514,18.788,18.778,22.526]
[1688258347850,22.514,18.788,18.771,58.012]
[1688258348738,22.514,18.788,18.775,22.529]
[1688258350836,22.514,18.788,18.768,105.867]
[1688258350837,75.0,18.787,18.769,22.536]
[1688258351045,186.296,18.782,18.769,22.536]
[1688258351347,94.1043,18.781,18.769,22.43190092]
[1688258351649,22.527,18.778,18.769,22.43190092]
[1688258352459,75.0,18.787,18.769,22.43190092]
[1688258352460,22.525,18.78,18.769,22.43190092]
[1688258354758,22.525,18.78,18.769,80.45290092]
[1688258354944,22.525,18.78,18.77,75.0]
[1688258355266,22.525,18.78,18.773,22.532]
[1688258355645,22.525,18.78,18.77,75.0]
[1688258360664,22.525,18.78,18.762,26.66568998]
[1688258360851,22.525,18.78,18.763,75.0]
[1688258361054,22.525,18.78,18.761,90.91231316]
[1688258361371,22.525,18.78,18.762,20.0]
[1688258361658,22.525,18.78,18.76,33.54]
[1688258362077,80.539,18.774,18.76,33.54]
[1688258363063,80.539,18.774,18.761,55.0]
[1688258374268,26.58232496,18.785,18.761,55.0]
[1688258374269,67.33,18.8,18.761,102.29686156]
[1688258374570,128.276,18.788,18.77,67.19]
[1688258374779,22.514,18.788,18.782,22.521]
[1688258374970,22.514,18.788,18.777,22.526]
[1688258375164,22.514,18.788,18.771,90.91231316]
[1688258375165,22.514,18.788,18.773,22.531]
[1688258375477,22.514,18.788,18.771,47.29686156]
[1688258375478,22.514,18.788,18.771,22.533]
[1688258375973,22.514,18.788,18.771,56.183]
[1688258376559,22.514,18.788,18.772,77.532]
[1688258379984,22.514,18.788,18.772,22.532]
[1688258380277,22.514,18.788,18.768,22.537]
[1688258380475,55.0,18.787,18.769,42.536]
[1688258380673,186.299,18.782,18.769,20.0]
[1688258380875,186.299,18.782,18.769,42.536]
[1688258381474,80.504,18.782,18.77,55.0]
[1688258381659,80.504,18.782,18.773,22.532]
[1688258382577,22.522,18.782,18.773,22.532]
[1688258382983,22.522,18.782,18.774,55.0]
[1688258383176,22.522,18.782,18.776,22.528]
[1688258385373,67.15,18.8,18.777,20.0]
[1688258385682,67.15,18.8,18.781,22.522]
[1688258385683,22.512,18.79,18.781,22.522]
[1688258385979,90.3232,18.795,18.785,22.517]
[1688258385980,22.508,18.794,18.785,22.517]
[1688258387167,22.507,18.795,18.785,22.517]
[1688258387372,90.3232,18.799,18.786,55.0]
[1688258387577,90.3232,18.799,18.789,22.512]
[1688258388574,22.499,18.801,18.79,88.8]
[1688258388782,22.499,18.801,18.793,22.508]
[1688258388979,4.498e-05,18.803,18.794,55.0]
[1688258388980,22.49704498,18.803,18.794,55.0]
[1688258389186,4.498e-05,18.803,18.796,22.503]
[1688258389397,4.498e-05,18.803,18.797,55.0]
[1688258389566,4.498e-05,18.803,18.798,22.501]
[1688258389761,4.498e-05,18.803,18.799,55.0]
[1688258389961,4.498e-05,18.803,18.8,22.499]
[1688258391486,4.498e-05,18.803,18.802,22.497]
[1688258391782,4.498e-05,18.803,18.802,77.497]
[1688258394186,4.498e-05,18.803,18.796,22.495]
[1688258394391,80.41204498,18.803,18.77,67.45]
[1688258394684,0.94392804,18.802,18.781,57.982]
[1688258394895,80.41204498,18.803,18.781,80.504]
[1688258394896,57.91604498,18.803,18.781,80.504]
[1688258395186,22.503,18.798,18.781,22.522]
[1688258395773,22.501,18.8,18.781,22.522]
[1688258395972,22.501,18.8,18.781,45.025]
[1688258397368,22.501,18.8,18.787,22.515]
[1688258397770,22.501,18.8,18.791,22.51]
[1688258397980,22.501,18.8,18.792,55.0]
[1688258398397,22.501,18.8,18.792,77.509]
[1688258398972,22.501,18.8,18.792,22.509]
[1688258399168,22.501,18.8,18.788,57.918045]
[1688258399169,80.426,18.8,18.788,80.431045]
[1688258399394,80.426,18.8,18.789,20.0]
[1688258399695,80.426,18.8,18.788,20.0]
[1688258399880,80.426,18.8,18.788,42.514]
[1688258400076,80.426,18.8,18.788,20.0]
[1688258400388,80.426,18.8,18.774,105.834]
[1688258400588,80.426,18.8,18.776,20.0]
[1688258400785,80.426,18.8,18.782,22.52]
[1688258401294,80.426,18.8,18.782,80.501]
[1688258401674,80.426,18.8,18.782,22.52]
[1688258401884,55.0,18.799,18.782,22.52]
[1688258402184,186.176,18.794,18.78,22.523]
[1688258402387,186.176,18.794,18.778,22.525]
[1688258402575,186.176,18.794,18.779,20.0]
[1688258402777,186.176,18.794,18.779,42.524]
[1688258403496,150.4253,18.799,18.779,20.0]
[1688258403497,80.473,18.789,18.779,20.0]
[1688258403692,80.473,18.789,18.778,42.526]
[1688258403878,80.473,18.789,18.776,22.527]
[1688258404889,55.0,18.788,18.774,22.53]
[1688258405093,22.519,18.784,18.774,22.53]
[1688258409314,22.516,18.786,18.774,22.53]
[1688258409492,22.516,18.786,18.775,55.0]
[1688258409695,22.516,18.786,18.778,22.526]
[1688258410004,91.5025,18.79,18.778,22.526]
[1688258410704,22.516,18.786,18.776,22.528]
[1688258411003,22.516,18.786,18.777,22.527]
[1688258413422,396.8,18.81,18.777,22.527]
[1688258413629,105.719,18.796,18.778,55.0]
[1688258413926,105.719,18.796,18.783,22.519]
[1688258413927,22.513,18.79,18.783,22.519]
[1688258415826,22.513,18.79,18.776,57.986]
[1688258416126,22.513,18.79,18.772,105.844]
[1688258416127,22.513,18.79,18.781,22.522]
[1688258417228,22.513,18.79,18.779,22.524]
[1688258422009,55.0,18.789,18.774,22.53]
[1688258422309,55.0,18.789,18.76,16.72]
[1688258422310,80.491,18.785,18.761,58.045]
[1688258422622,186.339,18.778,18.763,22.543]
[1688258423332,22.532,18.773,18.763,22.543]
[1688258427031,22.532,18.773,18.764,55.0]
[1688258427236,22.532,18.773,18.765,22.54]
[1688258427820,22.532,18.773,18.759,116.054]
[1688258427821,80.54,18.773,18.759,58.002]
[1688258428031,80.54,18.773,18.76,20.0]
[1688258428332,22.532,18.773,18.765,22.541]
[1688258431133,105.814,18.779,18.765,22.541]
[1688258431134,22.529,18.776,18.769,22.537]
[1688258431520,864.69388045,18.809,18.77,55.0]
[1688258431521,22.527,18.778,18.77,55.0]
[1688258431720,22.527,18.778,18.772,22.533]
[1688258433139,22.527,18.778,18.769,22.536]
[1688258436350,22.527,18.778,18.767,22.538]
[1688258440640,22.527,18.778,18.762,22.538]
[1688258440945,22.527,18.778,18.761,10.83719922]
[1688258441134,22.527,18.778,18.762,55.0]
[1688258441838,22.527,18.778,18.763,22.543]
[1688258442429,22.527,18.778,18.764,10.83719922]
[1688258442631,22.517,18.786,18.77,97.339]
[1688258443045,22.517,18.786,18.775,22.529]
[1688258443246,22.517,18.786,18.779,22.525]
[1688258445142,22.517,18.786,18.776,10.83719922]
[1688258445453,22.517,18.786,18.778,22.526]
[1688258447345,118.3345,18.789,18.778,22.526]
[1688258447549,95.8215,18.789,18.779,65.83719922]
[1688258447855,16.86,18.81,18.782,22.521]
[1688258448058,99.186,18.802,18.783,55.0]
[1688258448235,22.502,18.799,18.788,80.474]
[1688258448635,22.502,18.799,18.788,91.31119922]
[1688258449646,22.502,18.799,18.788,22.513]
[1688258453458,22.502,18.799,18.789,55.0]
[1688258453759,22.502,18.799,18.792,22.509]
[1688258456051,4.498e-05,18.803,18.792,22.509]
[1688258456253,4.498e-05,18.803,18.792,91.29619922]
[1688258456561,4.498e-05,18.803,18.793,65.83719922]
[1688258456755,4.498e-05,18.803,18.796,22.504]
[1688258457655,22.49604498,18.803,18.796,22.504]
[1688258458042,4.498e-05,18.803,18.796,22.504]
[1688258459264,22.49604498,18.803,18.796,22.504]
[1688258460347,4.498e-05,18.803,18.796,22.504]
[1688258460547,4.498e-05,18.803,18.797,55.0]
[1688258460755,4.498e-05,18.803,18.798,80.43]
[1688258460954,4.498e-05,18.803,18.798,22.501]
[1688258464658,4.498e-05,18.803,18.8,22.499]
[1688258465161,4.498e-05,18.803,18.801,65.83719922]
[1688258465369,4.498e-05,18.803,18.802,80.416]
[1688258465562,4.498e-05,18.803,18.802,135.416]
[1688258468074,4.498e-05,18.803,18.802,146.25319922]
[1688258469683,4.498e-05,18.803,18.802,80.416]
[1688258469979,4.498e-05,18.803,18.802,22.497]
[1688258476269,4.498e-05,18.803,18.802,33.33419922]
[1688258476574,4.498e-05,18.803,18.802,88.33419922]
[1688258476758,4.498e-05,18.803,18.802,108.33419922]
[1688258478079,4.498e-05,18.803,18.802,88.33419922]
[1688258478257,91.0184,18.824,18.802,85.83719922]
[1688258478258,9.44417131,18.823,18.802,85.83719922]
[1688258478453,22.472,18.823,18.803,75.0]
[1688258478760,22.472,18.823,18.809,22.489]
[1688258478979,22.472,18.823,18.81,20.0]
[1688258479269,30.24646532,18.823,18.803,68.75219922]
[1688258479653,80.351,18.818,18.806,22.492]
[1688258480174,80.351,18.818,18.8,57.924]
[1688258480351,80.351,18.818,18.806,22.492]
[1688258483480,80.351,18.818,18.804,22.494]
[1688258483674,80.351,18.818,18.801,10.83719922]
[1688258483876,80.351,18.818,18.802,55.0]
[1688258484263,22.479,18.818,18.805,22.493]
[1688258484468,22.479,18.818,18.806,55.0]
[1688258484664,22.479,18.818,18.809,22.488]
[1688258487480,22.479,18.818,18.81,55.0]
[1688258487782,22.479,18.818,18.81,77.487]
[1688258487989,22.479,18.818,18.81,22.487]
[1688258491480,91.0184,18.824,18.811,55.0]
[1688258491682,113.4904,18.824,18.814,22.482]
[1688258491872,22.472,18.824,18.814,22.482]
[1688258492473,22.472,18.824,18.807,57.903]
[1688258492676,22.472,18.824,18.808,85.83719922]
[1688258492885,22.472,18.824,18.808,20.0]
[1688258492886,30.24646532,18.824,18.808,20.0]
[1688258493183,30.24646532,18.824,18.803,57.915]
[1688258493184,62.77446532,18.823,18.803,57.915]
[1688258493383,163.396,18.826,18.809,22.489]
[1688258493384,22.479,18.817,18.809,22.489]
[1688258494273,22.477,18.82,18.809,80.386]
[1688258494472,22.477,18.82,18.81,20.0]
[1688258494687,22.477,18.82,18.813,22.484]
[1688258495080,92.6408,18.828,18.813,22.484]
[1688258495582,22.472,18.824,18.818,22.478]
[1688258496574,7.77446532,18.834,18.818,22.478]
[1688258496575,33.46,18.84,18.818,22.478]
[1688258496895,33.46,18.84,18.814,55.0]
[1688258496896,108.88,18.833,18.823,22.472]
[1688258497090,22.461,18.833,18.823,22.472]
[1688258497387,57.8,18.841,18.823,33.30919922]
[1688258497589,22.457,18.836,18.824,65.83719922]
[1688258497793,22.457,18.836,18.827,22.467]
[1688258498976,22.457,18.836,18.826,22.468]
[1688258499784,22.457,18.836,18.827,55.0]
[1688258499985,22.457,18.836,18.829,22.464]
[1688258500187,22.457,18.836,18.825,22.469]
[1688258500392,22.457,18.836,18.82,118.42120402]
[1688258500393,22.457,18.836,18.822,10.83719922]
[1688258500991,22.457,18.836,18.824,22.47]
[1688258501297,22.457,18.836,18.824,33.30719922]
[1688258501473,22.457,18.836,18.824,22.47]
[1688258501677,22.457,18.836,18.825,10.83719922]
[1688258501878,22.457,18.836,18.818,27.10982102]
[1688258502075,219.46,18.83,18.818,49.58782102]
[1688258502270,219.55,18.83,18.81,22.486]
[1688258502474,219.55,18.83,18.81,53.61]
[1688258502475,80.333,18.822,18.81,53.61]
[1688258502672,22.474,18.822,18.813,22.484]
[1688258503475,80.331,18.822,18.811,22.486]
[1688258503683,80.331,18.822,18.809,57.849]
[1688258503994,149.0326,18.829,18.8,59.66120493]
[1688258503995,22.483,18.814,18.8,26.12120493]
[1688258504173,22.483,18.814,18.798,57.929]
[1688258504377,22.483,18.814,18.799,0.06587639]
[1688258504597,22.483,18.814,18.798,57.929]
[1688258505479,22.483,18.814,18.799,20.0]
[1688258505699,22.483,18.814,18.8,22.499]
[1688258505999,22.483,18.814,18.793,22.508]
[1688258506000,33.49,18.81,18.793,22.508]
[1688258506296,33.49,18.81,18.787,57.964]
[1688258506297,80.404,18.805,18.787,57.964]
[1688258506500,80.404,18.805,18.794,22.506]
[1688258506679,22.494,18.805,18.794,22.506]
[1688258506886,22.494,18.805,18.794,80.45]
[1688258507074,22.494,18.805,18.794,22.506]
[1688258507682,22.494,18.805,18.792,22.508]
[1688258510001,22.494,18.805,18.78,60.05144565]
[1688258510002,55.0,18.804,18.78,60.05144565]
[1688258510300,80.438,18.797,18.774,95.2307]
[1688258510602,80.438,18.797,18.78,55.0]
[1688258511094,80.438,18.797,18.778,57.993]
[1688258511307,80.438,18.797,18.78,22.523]
[1688258511497,55.0,18.796,18.778,57.993]
[1688258511683,186.209,18.791,18.778,57.993]
[1688258511996,186.209,18.791,18.778,22.526]
[1688258512491,80.465,18.791,18.778,22.526]
[1688258512895,22.516,18.787,18.778,22.526]
[1688258513402,22.516,18.787,18.775,22.529]
[1688258514586,22.516,18.787,18.776,55.0]
[1688258514789,33.57,18.8,18.779,22.524]
[1688258514994,57.945,18.794,18.78,108.46]
[1688258515307,22.508,18.793,18.785,22.517]
[1688258516407,22.508,18.793,18.78,22.523]
[1688258516700,33.73,18.79,18.77,58.018]
[1688258517000,80.493,18.784,18.774,22.53]
[1688258517200,80.493,18.784,18.772,22.532]
[1688258520410,80.493,18.784,18.77,22.535]
[1688258520411,20.0,18.783,18.77,22.535]
[1688258520598,80.512,18.78,18.762,163.942]
[1688258520797,22.525,18.78,18.769,22.536]
[1688258521503,22.525,18.78,18.77,20.0]
[1688258521708,22.525,18.78,18.77,42.535]
[1688258522015,22.525,18.78,18.768,22.537]
[1688258522228,22.525,18.78,18.769,22.536]
[1688258523722,22.525,18.78,18.767,22.539]
[1688258523913,22.525,18.78,18.736,263.4343116]
[1688258523914,56.255,18.78,18.763,22.543]
[1688258524113,55.0,18.779,18.764,22.542]
[1688258524301,22.53,18.775,18.764,22.542]
[1688258529914,22.53,18.775,18.758,57.999]
[1688258530111,22.53,18.775,18.756,105.936]
[1688258530112,22.53,18.775,18.762,22.544]
[1688258531515,22.53,18.775,18.763,55.0]
[1688258531697,22.53,18.775,18.766,22.54]
[1688258531897,93.40964578,18.79,18.766,22.54]
[1688258531898,67.26,18.8,18.767,20.0]
[1688258532097,67.26,18.8,18.776,80.523]
[1688258532098,22.514,18.789,18.776,80.523]
[1688258532606,22.514,18.789,18.78,22.523]
[1688258533912,22.514,18.789,18.77,67.46]
[1688258533913,22.514,18.789,18.778,22.525]
[1688258536519,55.0,18.788,18.769,58.018]
[1688258536810,22.521,18.783,18.774,22.53]
[1688258537805,22.519,18.785,18.774,22.53]
[1688258538003,163.667,18.795,18.774,33.36719922]
[1688258538214,22.511,18.791,18.774,33.36719922]
[1688258538415,57.941,18.795,18.775,30.83719922]
[1688258538715,22.511,18.791,18.781,22.522]
[1688258540819,22.509,18.793,18.781,33.35919922]
[1688258541313,22.509,18.793,18.782,10.83719922]
[1688258541517,22.509,18.793,18.785,22.517]
[1688258543621,97.2834,18.794,18.785,22.517]
[1688258544002,16.87,18.81,18.785,22.517]
[1688258544204,105.61,18.815,18.79,16.71]
[1688258544408,22.488,18.81,18.799,80.429]
[1688258544708,22.488,18.81,18.799,22.501]
[1688258544903,22.488,18.81,18.797,22.502]
[1688258545316,30.21742796,18.81,18.795,22.504]
[1688258545501,62.72942796,18.809,18.795,22.504]
[1688258545709,80.404,18.805,18.795,22.504]
[1688258547606,22.494,18.805,18.795,22.504]
[1688258548404,22.494,18.805,18.787,55.0]
[1688258548610,75.0,18.804,18.785,57.968]
[1688258548908,22.502,18.799,18.789,22.512]
[1688258549110,55.0,18.798,18.789,22.512]
[1688258549311,22.505,18.796,18.789,22.512]
[1688258550923,22.504,18.797,18.789,22.512]
[1688258552121,22.504,18.797,18.788,22.514]
[1688258552324,22.504,18.797,18.789,22.512]
[1688258553827,80.438,18.797,18.782,57.978]
[1688258554206,22.501,18.799,18.785,80.488]
[1688258554421,22.498,18.802,18.785,80.488]
[1688258554610,22.495,18.804,18.79,16.71]
[1688258554826,57.901,18.808,18.791,20.0]
[1688258554827,22.496,18.803,18.791,20.0]
[1688258555128,22.496,18.803,18.786,10.83719922]
[1688258555129,22.498,18.802,18.786,10.83719922]
[1688258555321,22.498,18.802,18.79,22.511]
[1688258555625,22.498,18.802,18.777,202.4038]
[1688258555809,16.87,18.81,18.777,202.4038]
[1688258555810,80.45,18.795,18.783,22.519]
[1688258558318,186.219,18.79,18.769,105.865]
[1688258558617,55.0,18.789,18.77,100.55]
[1688258558930,22.52,18.784,18.77,100.55]
[1688258559615,22.52,18.784,18.771,55.0]
[1688258559912,22.507,18.794,18.774,80.533]
[1688258560228,22.501,18.799,18.785,80.488]
[1688258560534,22.501,18.799,18.786,65.83719922]
[1688258560726,22.501,18.799,18.789,22.512]
[1688258561036,396.8,18.809,18.789,22.512]
[1688258561037,26.05281954,18.818,18.79,82.54719922]
[1688258561237,22.483,18.814,18.798,80.431]
[1688258561439,27.67308857,18.829,18.798,80.431]
[1688258561440,22.478,18.818,18.8,16.71]
[1688258561726,22.479,18.817,18.805,22.493]
[1688258563720,22.479,18.817,18.806,55.0]
[1688258563920,22.479,18.817,18.809,22.488]
[1688258564125,1042.03113427,18.884,18.809,22.488]
[1688258564126,92.4811,18.83,18.809,22.488]
[1688258564430,22.461,18.833,18.817,185.945]
[1688258564824,22.461,18.833,18.822,22.473]
[1688258565024,22.461,18.833,18.82,22.475]
[1688258565529,22.461,18.833,18.821,55.0]
[1688258565829,22.461,18.833,18.824,22.47]
[1688258566339,22.46,18.834,18.824,22.47]
[1688258566538,27.67308857,18.854,18.825,55.0]
[1688258566839,999.4,18.866,18.832,80.284]
[1688258566840,80.216,18.849,18.832,80.284]
[1688258567022,80.216,18.849,18.833,55.0]
[1688258567321,80.216,18.849,18.831,57.827]
[1688258567526,87.94542796,18.849,18.82,16.87]
[1688258567720,87.94542796,18.849,18.826,22.468]
[1688258567721,80.216,18.849,18.826,22.468]
[1688258568039,80.216,18.849,18.827,30.83719922]
[1688258568236,80.216,18.849,18.833,22.459]
[1688258568237,22.442,18.849,18.833,22.459]
[1688258568550,22.442,18.849,18.833,80.283]
[1688258568920,22.442,18.849,18.834,55.0]
[1688258569221,22.442,18.849,18.836,22.456]
[1688258569423,105.326,18.866,18.84,16.71]
[1688258569622,57.708,18.871,18.849,22.441]
[1688258569846,27.673088,18.875,18.85,91.87]
[1688258570138,22.415,18.872,18.857,22.431]
[1688258570439,22.415,18.872,18.861,22.426]
[1688258570622,19.915,18.872,18.861,21.426]
[1688258571136,19.915,18.872,18.858,55.0]
[1688258571137,27.64442796,18.872,18.858,55.0]
[1688258571436,22.407,18.878,18.86,16.71]
[1688258571643,22.404,18.881,18.865,22.422]
[1688258571942,2.0,18.888,18.865,22.422]
[1688258572141,22.399,18.885,18.872,22.413]
[1688258572824,30.12842796,18.885,18.864,57.728]
[1688258573138,7.72942796,18.884,18.865,55.0]
[1688258573433,22.402,18.882,18.869,22.416]
[1688258573646,22.402,18.882,18.86,16.71]
[1688258573821,7.72942796,18.881,18.859,57.742]
[1688258574020,7.72942796,18.881,18.853,105.391]
[1688258574021,22.41,18.875,18.863,22.423]
[1688258575139,22.41,18.875,18.86,57.685]
[1688258575339,22.41,18.875,18.85,20.0]
[1688258575340,22.42,18.867,18.85,20.0]
[1688258575530,22.42,18.867,18.84,16.71]
[1688258575531,22.42,18.867,18.841,57.798]
[1688258575722,22.43,18.859,18.846,22.444]
[1688258575917,22.427,18.861,18.846,22.444]
[1688258576134,57.714,18.869,18.846,22.444]
[1688258576135,22.423,18.864,18.846,22.444]
[1688258576335,16.66,18.88,18.841,57.717]
[1688258576336,57.702,18.873,18.852,80.2]
[1688258576725,22.422,18.866,18.852,80.2]
[1688258576937,57.689,18.877,18.852,91.03719922]
[1688258577233,22.415,18.871,18.853,10.83719922]
[1688258577544,22.412,18.874,18.86,22.428]
[1688258577740,22.41,18.876,18.86,22.428]
[1688258577945,22.41,18.876,18.861,65.83719922]
[1688258578130,22.41,18.876,18.865,22.421]
[1688258578329,22.41,18.876,18.866,55.0]
[1688258578533,22.41,18.876,18.869,22.417]
[1688258578822,22.41,18.876,18.855,57.755]
[1688258579027,22.41,18.876,18.856,20.0]
[1688258579240,22.41,18.876,18.858,57.677]
[1688258579446,22.41,18.876,18.859,20.0]
[1688258579930,20.0,18.875,18.858,80.106]
[1688258580132,22.416,18.87,18.851,57.767]
[1688258580437,22.416,18.87,18.851,68.60419922]
[1688258580737,22.416,18.87,18.855,22.433]
[1688258581148,22.416,18.87,18.856,10.83719922]
[1688258581333,22.416,18.87,18.86,22.428]
[1688258581642,22.414,18.872,18.861,10.83719922]
[1688258581827,22.412,18.874,18.864,22.422]
[1688258582027,22.41,18.876,18.867,22.419]
[1688258582224,22.41,18.876,18.865,55.0]
[1688258582539,22.41,18.876,18.864,10.83719922]
[1688258582540,22.41,18.876,18.859,57.741]
[1688258582742,22.41,18.876,18.864,22.423]
[1688258584138,22.41,18.876,18.865,55.0]
[1688258584655,22.41,18.876,18.866,80.142]
[1688258584826,22.41,18.876,18.866,22.42]
[1688258585026,22.41,18.876,18.869,22.416]
[1688258585252,26.984,18.903,18.876,22.41]
[1688258585424,26.984,18.903,18.883,80.071]
[1688258585630,26.984,18.903,18.883,22.401]
[1688258585837,26.984,18.903,18.884,75.0]
[1688258586038,26.984,18.903,18.889,22.393]
[1688258586242,26.984,18.903,18.89,75.0]
[1688258586433,26.984,18.903,18.893,22.388]
[1688258586627,26.984,18.903,18.89,22.391]
[1688258587547,26.984,18.903,18.891,55.0]
[1688258587734,26.984,18.903,18.886,84.644]
[1688258587937,26.984,18.903,18.887,12.24785]
[1688258588133,26.984,18.903,18.892,22.39]
[1688258588340,26.984,18.903,18.893,67.24396]
[1688258588640,26.984,18.903,18.896,22.385]
[1688258588841,26.984,18.903,18.897,12.24137]
[1688258589143,26.984,18.903,18.898,135.006]
[1688258589346,26.984,18.903,18.898,147.24672]
[1688258589643,26.984,18.903,18.898,34.62272]
[1688258590951,26.984,18.903,18.9,185.129]
[1688258591131,16.72,18.93,18.902,22.378]
[1688258591329,90.0806,18.928,18.902,22.378]
[1688258591533,90.0806,18.928,18.9,162.749]
[1688258591534,90.0806,18.928,18.91,22.368]
[1688258591739,71.72,18.93,18.909,22.369]
[1688258591957,90.0806,18.927,18.909,22.369]
[1688258592246,3.0,18.922,18.892,57.641]
[1688258592439,16.75,18.92,18.893,12.24396]
[1688258592639,16.75,18.92,18.896,22.384]
[1688258593350,37.930625,18.92,18.896,22.384]
[1688258593547,55.0,18.919,18.896,22.384]
[1688258594447,16.68,18.91,18.893,12.24396]
[1688258594755,16.68,18.91,18.883,57.67]
[1688258594953,75.0,18.909,18.886,57.661]
[1688258595339,75.0,18.909,18.889,22.393]
[1688258595540,37.867184,18.91,18.889,22.393]
[1688258595541,94.5955,18.908,18.889,22.393]
[1688258595935,20.0,18.907,18.889,22.393]
[1688258596555,55.0,18.906,18.889,22.393]
[1688258596755,20.0,18.905,18.889,22.393]
[1688258597162,55.0,18.904,18.889,22.393]
[1688258597540,20.0,18.905,18.889,22.393]
[1688258597849,20.0,18.907,18.889,92.29156]
[1688258598152,94.5955,18.908,18.895,22.386]
[1688258598347,16.75,18.92,18.895,22.386]
[1688258598553,16.75,18.92,18.901,22.379]
[1688258598948,37.927884,18.92,18.901,22.379]
[1688258599153,16.75,18.92,18.901,22.379]
[1688258599738,91.3244,18.922,18.901,22.379]
[1688258600056,91.3244,18.922,18.908,22.371]
[1688258600241,16.68,18.93,18.906,22.373]
[1688258600242,57.619,18.927,18.906,22.373]
[1688258600441,57.619,18.927,18.901,12.23878]
[1688258600649,57.619,18.927,18.905,21.834218]
[1688258601437,20.0,18.926,18.905,21.834218]
[1688258601642,20.0,18.926,18.901,12.23878]
[1688258601643,16.75,18.92,18.903,22.376]
[1688258602744,55.0,18.919,18.894,57.636]
[1688258602944,20.0,18.918,18.894,57.636]
[1688258603257,20.0,18.918,18.895,12.24267]
[1688258603455,16.75,18.92,18.901,22.378]
[1688258603658,57.619,18.927,18.902,55.0]
[1688258603866,20.0,18.926,18.909,22.369]
[1688258604958,16.65,18.92,18.895,12.24267]
[1688258605260,16.65,18.92,18.895,34.62867]
[1688258605261,184.985,18.915,18.895,34.62867]
[1688258605451,147.1966,18.914,18.895,34.62867]
[1688258605651,185.05,18.909,18.895,22.386]
[1688258606546,55.0,18.908,18.895,22.386]
[1688258606853,79.98,18.905,18.895,22.386]